Workbook

Sheet INGRESO DE DATOS
A8: COTIZACIÓN DE SEGURO MÉDICO INTERNACIONAL
A10: INGRESE LOS DATOS DEL PROPUESTO ASEGURADO:
C12: Nombre del Asegurado principal: | D12: NOMBRE COMPLETO
F14: Número de adultos en la póliza: | G14: 2 | I14: Número de hijos en la póliza: | J14: 3
F16: Edad del titular: | G16: 74 | I16: Edad de cónyuge: | J16: 74
A19: INGRESE EL NOMBRE DE LA AGENCIA ASESORA:
C21: Nombre de la Agencia: | D21: NOMBRE DE LA AGENCIA/AGENTE
A24: ESCOJA EL PRODUCTO PARA VISUALIZAR LA COTIZACION RESPECTIVA :

Sheet Exclusive
C10: Cotización de Seguro Médico Internacional - Bupa EXCLUSIVE Care
G12: Nombre del asegurado : | H12: =+'INGRESO DE DATOS'!$D$12 -> NOMBRE COMPLETO
G14: Broker / Agente : | H14: =+'INGRESO DE DATOS'!$D$21 -> NOMBRE DE LA AGENCIA/AGENTE
I16: Número de adultos en la póliza: | J16: =+'INGRESO DE DATOS'!$G$14 -> 2 | L16: Edad de Titular : | M16: =+'INGRESO DE DATOS'!$G$16 -> 74
I18: Número hijos (menos 24 de años): | J18: =+'INGRESO DE DATOS'!$J$14 -> 3 | L18: Edad de Cónyuge: | M18: =+'INGRESO DE DATOS'!$J$16 -> 74
I20: Fecha de cotización: | J20: =NOW() -> 2022-12-22T15:27:35.570
I23: FALSE | K23: COMPLICACIONES DE MATERNIDAD
F25: Deducibles | H25: PLAN 1 | I25: PLAN 2 | J25: PLAN 3 | K25: PLAN 4 | L25: PLAN 5 | M25: PLAN 6
F26: Dentro del pais de residencia | H26: n/a | I26: 1000 | J26: 2000 | K26: 5000 | L26: 10000 | M26: 20000
F27: Fuera del pais de residencia | H27: n/a | I27: 2000 | J27: 3000 | K27: 5000 | L27: 10000 | M27: 20000
F29: Tarifas Anuales
F30: Prima de Titular : | H30: n/a | I30: =VLOOKUP($M$16,Tablas!$A$6:$H$29,4,TRUE) -> 154269 | J30: =VLOOKUP($M$16,Tablas!$A$6:$H$29,5,TRUE) -> 105957 | K30: =VLOOKUP($M$16,Tablas!$A$6:$H$29,6,TRUE) -> 73824 | L30: =VLOOKUP($M$16,Tablas!$A$6:$H$29,7,TRUE) -> 64678 | M30: =VLOOKUP($M$16,Tablas!$A$6:$H$29,8,TRUE) -> 56150
F31: Prima de Cónyuge | H31: n/a | I31: =IF($J$16=1,0,(VLOOKUP($M$18,Tablas!$A$6:$H$29,4,TRUE))) -> 154269 | J31: =IF($J$16=1,0,(VLOOKUP($M$18,Tablas!$A$6:$H$29,5,TRUE))) -> 105957 | K31: =IF($J$16=1,0,(VLOOKUP($M$18,Tablas!$A$6:$H$29,6,TRUE))) -> 73824 | L31: =IF($J$16=1,0,(VLOOKUP($M$18,Tablas!$A$6:$H$29,7,TRUE))) -> 64678 | M31: =IF($J$16=1,0,(VLOOKUP($M$18,Tablas!$A$6:$H$29,8,TRUE))) -> 56150
F32: Primas Hijos : | H32: n/a | I32: =IF($J$18=0,0,(VLOOKUP($J$18,Tablas!$A$30:$H$32,4,TRUE))) -> 14019 | J32: =IF($J$18=0,0,(VLOOKUP($J$18,Tablas!$A$30:$H$32,5,TRUE))) -> 10329 | K32: =IF($J$18=0,0,(VLOOKUP($J$18,Tablas!$A$30:$H$32,6,TRUE))) -> 7946 | L32: =IF($J$18=0,0,(VLOOKUP($J$18,Tablas!$A$30:$H$32,7,TRUE))) -> 6570 | M32: =IF($J$18=0,0,(VLOOKUP($J$18,Tablas!$A$30:$H$32,8,TRUE))) -> 5116
F33: Prima Rider Complic. Maternidad | H33: n/a | I33: =+IF($I$23=FALSE,0,Tablas!D$33) -> 0 | J33: =+IF($I$23=FALSE,0,Tablas!E$33) -> 0 | K33: =+IF($I$23=FALSE,0,Tablas!F$33) -> 0 | L33: =+IF($I$23=FALSE,0,Tablas!G$33) -> 0 | M33: =+IF($I$23=FALSE,0,Tablas!H$33) -> 0
F34: TOTAL PRIMA NETA : | H34: n/a | I34: =SUM(I30:I33) -> 322557 | J34: =SUM(J30:J33) -> 222243 | K34: =SUM(K30:K33) -> 155594 | L34: =SUM(L30:L33) -> 135926 | M34: =SUM(M30:M33) -> 117416
F35: Costo Administrativo Anual : | H35: n/a | I35: 75 | J35: 75 | K35: 75 | L35: 75 | M35: 75
F36: GRAN TOTAL : | H36: n/a | I36: =SUM(I34:I35) -> 322632 | J36: =SUM(J34:J35) -> 222318 | K36: =SUM(K34:K35) -> 155669 | L36: =SUM(L34:L35) -> 136001 | M36: =SUM(M34:M35) -> 117491
F38: Tarifas Semestrales
F39: Prima de Titular : | H39: n/a | I39: =VLOOKUP($M$16,Tablas!$A$39:$H$62,4,TRUE) -> 81762.57 | J39: =VLOOKUP($M$16,Tablas!$A$39:$H$62,5,TRUE) -> 56157.21 | K39: =VLOOKUP($M$16,Tablas!$A$39:$H$62,6,TRUE) -> 39126.72 | L39: =VLOOKUP($M$16,Tablas!$A$39:$H$62,7,TRUE) -> 34279.34 | M39: =VLOOKUP($M$16,Tablas!$A$39:$H$62,8,TRUE) -> 29759.5
F40: Prima de Cónyuge | H40: n/a | I40: =IF($J$16=1,0,(VLOOKUP($M$18,Tablas!$A$39:$H$62,4,TRUE))) -> 81762.57 | J40: =IF($J$16=1,0,(VLOOKUP($M$18,Tablas!$A$39:$H$62,5,TRUE))) -> 56157.21 | K40: =IF($J$16=1,0,(VLOOKUP($M$18,Tablas!$A$39:$H$62,6,TRUE))) -> 39126.72 | L40: =IF($J$16=1,0,(VLOOKUP($M$18,Tablas!$A$39:$H$62,7,TRUE))) -> 34279.34 | M40: =IF($J$16=1,0,(VLOOKUP($M$18,Tablas!$A$39:$H$62,8,TRUE))) -> 29759.5
F41: Primas Hijos : | H41: n/a | I41: =IF($J$18=0,0,(VLOOKUP($J$18,Tablas!$A$63:$H$65,4,TRUE))) -> 7430.07 | J41: =IF($J$18=0,0,(VLOOKUP($J$18,Tablas!$A$63:$H$65,5,TRUE))) -> 5474.37 | K41: =IF($J$18=0,0,(VLOOKUP($J$18,Tablas!$A$63:$H$65,6,TRUE))) -> 4211.38 | L41: =IF($J$18=0,0,(VLOOKUP($J$18,Tablas!$A$63:$H$65,7,TRUE))) -> 3482.1 | M41: =IF($J$18=0,0,(VLOOKUP($J$18,Tablas!$A$63:$H$65,8,TRUE))) -> 2711.48
F42: Prima Rider Complic. Maternidad | H42: n/a | I42: =+IF($I$23=FALSE,0,Tablas!D$66) -> 0 | J42: =+IF($I$23=FALSE,0,Tablas!E$66) -> 0 | K42: =+IF($I$23=FALSE,0,Tablas!F$66) -> 0 | L42: =+IF($I$23=FALSE,0,Tablas!G$66) -> 0 | M42: =+IF($I$23=FALSE,0,Tablas!H$66) -> 0
F43: TOTAL PRIMA NETA : | H43: n/a | I43: =SUM(I39:I42) -> 170955.21 | J43: =SUM(J39:J42) -> 117788.79 | K43: =SUM(K39:K42) -> 82464.82 | L43: =SUM(L39:L42) -> 72040.78 | M43: =SUM(M39:M42) -> 62230.48
F44: Costo Administrativo Anual : | H44: n/a | I44: 75 | J44: 75 | K44: 75 | L44: 75 | M44: 75
F45: GRAN TOTAL (1ra Cuota) : | H45: n/a | I45: =SUM(I43:I44) -> 171030.21 | J45: =SUM(J43:J44) -> 117863.79 | K45: =SUM(K43:K44) -> 82539.82 | L45: =SUM(L43:L44) -> 72115.78 | M45: =SUM(M43:M44) -> 62305.48
F46: GRAN TOTAL (2da Cuota) : | H46: n/a | I46: =I43 -> 170955.21 | J46: =J43 -> 117788.79 | K46: 82464.82 | L46: 72040.78 | M46: 62230.48
F47: Tarifas en US $ ¸— Válidas desde 1ro. de Marzo de 2023
F49: Este presupuesto solamente tiene carácter informativo y en ningún momento expresa compromiso legal para suministrarle cobertura de seguro. La emisión de una póliza de seguro Bupa está sujeta a todas las evaluaciones de riesgo por parte de Bupa y a la recepción de todos los pagos de prima requeridos.

Sheet Privilege
C10: Cotización de Seguro Médico Internacional - Bupa PRIVILEGE Care
G12: Nombre del asegurado : | H12: =+'INGRESO DE DATOS'!$D$12 -> NOMBRE COMPLETO
G14: Broker / Agente : | H14: =+'INGRESO DE DATOS'!$D$21 -> NOMBRE DE LA AGENCIA/AGENTE
I16: Número de adultos en la póliza: | J16: =+'INGRESO DE DATOS'!$G$14 -> 2 | L16: Edad de Titular : | M16: =+'INGRESO DE DATOS'!$G$16 -> 74
I18: Número hijos (menos 24 de años): | J18: =+'INGRESO DE DATOS'!$J$14 -> 3 | L18: Edad de Cónyuge: | M18: =+'INGRESO DE DATOS'!$J$16 -> 74
I20: Fecha de cotización: | J20: =NOW() -> 2022-12-22T15:27:35.570
I22: FALSE | K22: COMPLICACIONES DE MATERNIDAD
F24: Deducibles | H24: PLAN 1 | I24: PLAN 2 | J24: PLAN 3 | K24: PLAN 4 | L24: PLAN 5 | M24: PLAN 6
F25: Dentro del pais de residencia | H25: n/a | I25: 1000 | J25: 2000 | K25: 5000 | L25: 10000 | M25: 20000
F26: Fuera del pais de residencia | H26: n/a | I26: 2000 | J26: 3000 | K26: 5000 | L26: 10000 | M26: 20000
F28: Tarifas Anuales
F29: Prima de Titular : | H29: n/a | I29: =VLOOKUP($M$16,Tablas!$A$140:$H$163,4,TRUE) -> 132583 | J29: =VLOOKUP($M$16,Tablas!$A$140:$H$163,5,TRUE) -> 92653 | K29: =VLOOKUP($M$16,Tablas!$A$140:$H$163,6,TRUE) -> 63999 | L29: =VLOOKUP($M$16,Tablas!$A$140:$H$163,7,TRUE) -> 56576 | M29: =VLOOKUP($M$16,Tablas!$A$140:$H$163,8,TRUE) -> 48487
F30: Prima de Cónyuge | H30: n/a | I30: =IF($J$16=1,0,(VLOOKUP($M$18,Tablas!$A$140:$H$163,4,TRUE))) -> 132583 | J30: =IF($J$16=1,0,(VLOOKUP($M$18,Tablas!$A$140:$H$163,5,TRUE))) -> 92653 | K30: =IF($J$16=1,0,(VLOOKUP($M$18,Tablas!$A$140:$H$163,6,TRUE))) -> 63999 | L30: =IF($J$16=1,0,(VLOOKUP($M$18,Tablas!$A$140:$H$163,7,TRUE))) -> 56576 | M30: =IF($J$16=1,0,(VLOOKUP($M$18,Tablas!$A$140:$H$163,8,TRUE))) -> 48487
F31: Primas Hijos : | H31: n/a | I31: =IF($J$18=0,0,(VLOOKUP($J$18,Tablas!$A$164:$H$166,4,TRUE))) -> 11758 | J31: =IF($J$18=0,0,(VLOOKUP($J$18,Tablas!$A$164:$H$166,5,TRUE))) -> 8593 | K31: =IF($J$18=0,0,(VLOOKUP($J$18,Tablas!$A$164:$H$166,6,TRUE))) -> 6283 | L31: =IF($J$18=0,0,(VLOOKUP($J$18,Tablas!$A$164:$H$166,7,TRUE))) -> 5203 | M31: =IF($J$18=0,0,(VLOOKUP($J$18,Tablas!$A$164:$H$166,8,TRUE))) -> 3853
F32: Prima Rider Complic. Maternidad | H32: n/a | I32: =+IF($I$22=FALSE,0,Tablas!D$167) -> 0 | J32: =+IF($I$22=FALSE,0,Tablas!E$167) -> 0 | K32: =+IF($I$22=FALSE,0,Tablas!F$167) -> 0 | L32: =+IF($I$22=FALSE,0,Tablas!G$167) -> 0 | M32: =+IF($I$22=FALSE,0,Tablas!H$167) -> 0
F33: TOTAL PRIMA NETA : | H33: n/a | I33: =SUM(I29:I32) -> 276924 | J33: =SUM(J29:J32) -> 193899 | K33: =SUM(K29:K32) -> 134281 | L33: =SUM(L29:L32) -> 118355 | M33: =SUM(M29:M32) -> 100827
F34: Costo Administrativo Anual : | H34: n/a | I34: 75 | J34: 75 | K34: 75 | L34: 75 | M34: 75
F35: GRAN TOTAL : | H35: n/a | I35: =SUM(I33:I34) -> 276999 | J35: =SUM(J33:J34) -> 193974 | K35: =SUM(K33:K34) -> 134356 | L35: =SUM(L33:L34) -> 118430 | M35: =SUM(M33:M34) -> 100902
F37: Tarifas Semestrales
F38: Prima de Titular : | H38: n/a | I38: =VLOOKUP($M$16,Tablas!$A$173:$H$196,4,TRUE) -> 70268.99 | J38: =VLOOKUP($M$16,Tablas!$A$173:$H$196,5,TRUE) -> 49106.09 | K38: =VLOOKUP($M$16,Tablas!$A$173:$H$196,6,TRUE) -> 33919.47 | L38: =VLOOKUP($M$16,Tablas!$A$173:$H$196,7,TRUE) -> 29985.28 | M38: =VLOOKUP($M$16,Tablas!$A$173:$H$196,8,TRUE) -> 25698.11
F39: Prima de Cónyuge | H39: n/a | I39: =IF($J$16=1,0,(VLOOKUP($M$18,Tablas!$A$173:$H$196,4,TRUE))) -> 70268.99 | J39: =IF($J$16=1,0,(VLOOKUP($M$18,Tablas!$A$173:$H$196,5,TRUE))) -> 49106.09 | K39: =IF($J$16=1,0,(VLOOKUP($M$18,Tablas!$A$173:$H$196,6,TRUE))) -> 33919.47 | L39: =IF($J$16=1,0,(VLOOKUP($M$18,Tablas!$A$173:$H$196,7,TRUE))) -> 29985.28 | M39: =IF($J$16=1,0,(VLOOKUP($M$18,Tablas!$A$173:$H$196,8,TRUE))) -> 25698.11
F40: Primas Hijos : | H40: n/a | I40: =IF($J$18=0,0,(VLOOKUP($J$18,Tablas!$A$197:$H$199,4,TRUE))) -> 6231.74 | J40: =IF($J$18=0,0,(VLOOKUP($J$18,Tablas!$A$197:$H$199,5,TRUE))) -> 4554.29 | K40: =IF($J$18=0,0,(VLOOKUP($J$18,Tablas!$A$197:$H$199,6,TRUE))) -> 3329.99 | L40: =IF($J$18=0,0,(VLOOKUP($J$18,Tablas!$A$197:$H$199,7,TRUE))) -> 2757.59 | M40: =IF($J$18=0,0,(VLOOKUP($J$18,Tablas!$A$197:$H$199,8,TRUE))) -> 2042.09
F41: Prima Rider Complic. Maternidad | H41: n/a | I41: =+IF($I$22=FALSE,0,Tablas!D$200) -> 0 | J41: =+IF($I$22=FALSE,0,Tablas!E$200) -> 0 | K41: =+IF($I$22=FALSE,0,Tablas!F$200) -> 0 | L41: =+IF($I$22=FALSE,0,Tablas!G$200) -> 0 | M41: =+IF($I$22=FALSE,0,Tablas!H$200) -> 0
F42: TOTAL PRIMA NETA : | H42: n/a | I42: =SUM(I38:I41) -> 146769.72 | J42: =SUM(J38:J41) -> 102766.47 | K42: =SUM(K38:K41) -> 71168.93 | L42: =SUM(L38:L41) -> 62728.15 | M42: =SUM(M38:M41) -> 53438.31
F43: Costo Administrativo Anual : | H43: n/a | I43: 75 | J43: 75 | K43: 75 | L43: 75 | M43: 75
F44: GRAN TOTAL (1ra Cuota) : | H44: n/a | I44: =SUM(I42:I43) -> 146844.72 | J44: =SUM(J42:J43) -> 102841.47 | K44: =SUM(K42:K43) -> 71243.93 | L44: =SUM(L42:L43) -> 62803.15 | M44: =SUM(M42:M43) -> 53513.31
F45: GRAN TOTAL (2da Cuota) : | H45: n/a | I45: =I42 -> 146769.72 | J45: =J42 -> 102766.47 | K45: 71168.93 | L45: 62728.15 | M45: 53438.31
F46: Tarifas en US $ ¸— Válidas desde 1ro. de enero de 2023
F48: Este presupuesto solamente tiene carácter informativo y en ningún momento expresa compromiso legal para suministrarle cobertura de seguro. La emisión de una póliza de seguro Bupa está sujeta a todas las evaluaciones de riesgo por parte de Bupa y a la recepción de todos los pagos de prima requeridos.

Sheet Advantage (Mundial)
C10: Cotización de Seguro Médico Internacional - Bupa ADVANTAGE Care
G12: Nombre del asegurado : | H12: =+'INGRESO DE DATOS'!$D$12 -> NOMBRE COMPLETO
G14: Broker / Agente : | H14: =+'INGRESO DE DATOS'!$D$21 -> NOMBRE DE LA AGENCIA/AGENTE
I16: Número de adultos en la póliza: | J16: =+'INGRESO DE DATOS'!$G$14 -> 2 | L16: Edad de Titular : | M16: =+'INGRESO DE DATOS'!$G$16 -> 74
I18: Número hijos (menos 24 de años): | J18: =+'INGRESO DE DATOS'!$J$14 -> 3 | L18: Edad de Cónyuge: | M18: =+'INGRESO DE DATOS'!$J$16 -> 74
I20: Fecha de cotización: | J20: =NOW() -> 2022-12-22T15:27:35.570
I22: FALSE | K22: COMPLICACIONES DE MATERNIDAD
I24: FALSE | K24: TRASPLANTE DE ORGANOS
F26: Deducibles | H26: PLAN 1 | I26: PLAN 2 | J26: PLAN 3 | K26: PLAN 4 | L26: PLAN 5 | M26: PLAN 6
F27: Dentro del pais de residencia | H27: n/a | I27: 1000 | J27: 2000 | K27: 5000 | L27: 10000 | M27: 20000
F28: Fuera del pais de residencia | H28: n/a | I28: 2000 | J28: 3000 | K28: 5000 | L28: 10000 | M28: 20000
F30: Tarifas Anuales
F31: Prima de Titular : | H31: n/a | I31: =VLOOKUP($M$16,Tablas!$A$274:$H$297,4,TRUE) -> 85054 | J31: =VLOOKUP($M$16,Tablas!$A$274:$H$297,5,TRUE) -> 66020 | K31: =VLOOKUP($M$16,Tablas!$A$274:$H$297,6,TRUE) -> 46543 | L31: =VLOOKUP($M$16,Tablas!$A$274:$H$297,7,TRUE) -> 35996 | M31: =VLOOKUP($M$16,Tablas!$A$274:$H$297,8,TRUE) -> 29072
F32: Prima de Cónyuge | H32: n/a | I32: =IF($J$16=1,0,(VLOOKUP($M$18,Tablas!$A$274:$H$297,4,TRUE))) -> 85054 | J32: =IF($J$16=1,0,(VLOOKUP($M$18,Tablas!$A$274:$H$297,5,TRUE))) -> 66020 | K32: =IF($J$16=1,0,(VLOOKUP($M$18,Tablas!$A$274:$H$297,6,TRUE))) -> 46543 | L32: =IF($J$16=1,0,(VLOOKUP($M$18,Tablas!$A$274:$H$297,7,TRUE))) -> 35996 | M32: =IF($J$16=1,0,(VLOOKUP($M$18,Tablas!$A$274:$H$297,8,TRUE))) -> 29072
F33: Primas Hijos : | H33: n/a | I33: =IF($J$18=0,0,(VLOOKUP($J$18,Tablas!$A$298:$H$300,4,TRUE))) -> 10100 | J33: =IF($J$18=0,0,(VLOOKUP($J$18,Tablas!$A$298:$H$300,5,TRUE))) -> 6934 | K33: =IF($J$18=0,0,(VLOOKUP($J$18,Tablas!$A$298:$H$300,6,TRUE))) -> 5185 | L33: =IF($J$18=0,0,(VLOOKUP($J$18,Tablas!$A$298:$H$300,7,TRUE))) -> 4457 | M33: =IF($J$18=0,0,(VLOOKUP($J$18,Tablas!$A$298:$H$300,8,TRUE))) -> 3128
F34: Prima Rider Complic. Maternidad | H34: n/a | I34: =+IF($I$22=FALSE,0,Tablas!D$301) -> 0 | J34: =+IF($I$22=FALSE,0,Tablas!E$301) -> 0 | K34: =+IF($I$22=FALSE,0,Tablas!F$301) -> 0 | L34: =+IF($I$22=FALSE,0,Tablas!G$301) -> 0 | M34: =+IF($I$22=FALSE,0,Tablas!H$301) -> 0
F35: Prima Rider Trasplante Organos | H35: n/a | I35: =IF($I$24=FALSE,0,Tablas!D$302) -> 0 | J35: =IF($I$24=FALSE,0,Tablas!E$302) -> 0 | K35: =IF($I$24=FALSE,0,Tablas!F$302) -> 0 | L35: =IF($I$24=FALSE,0,Tablas!G$302) -> 0 | M35: =IF($I$24=FALSE,0,Tablas!H$302) -> 0
F36: TOTAL PRIMA NETA : | H36: n/a | I36: =SUM(I31:I35) -> 180208 | J36: 138974 | K36: 98271 | L36: 76449 | M36: 61272
F37: Costo Administrativo Anual : | H37: n/a | I37: 75 | J37: 75 | K37: 75 | L37: 75 | M37: 75
F38: GRAN TOTAL : | H38: n/a | I38: =SUM(I36:I37) -> 180283 | J38: =SUM(J36:J37) -> 139049 | K38: =SUM(K36:K37) -> 98346 | L38: =SUM(L36:L37) -> 76524 | M38: =SUM(M36:M37) -> 61347
F40: Tarifas Semestrales
F41: Prima de Titular : | H41: n/a | I41: =VLOOKUP($M$16,Tablas!$A$307:$H$330,4,TRUE) -> 45078.62 | J41: =VLOOKUP($M$16,Tablas!$A$307:$H$330,5,TRUE) -> 34990.6 | K41: =VLOOKUP($M$16,Tablas!$A$307:$H$330,6,TRUE) -> 24667.79 | L41: =VLOOKUP($M$16,Tablas!$A$307:$H$330,7,TRUE) -> 19077.88 | M41: =VLOOKUP($M$16,Tablas!$A$307:$H$330,8,TRUE) -> 15408.16
F42: Prima de Cónyuge | H42: n/a | I42: =IF($J$16=1,0,(VLOOKUP($M$18,Tablas!$A$307:$H$330,4,TRUE))) -> 45078.62 | J42: =IF($J$16=1,0,(VLOOKUP($M$18,Tablas!$A$307:$H$330,5,TRUE))) -> 34990.6 | K42: =IF($J$16=1,0,(VLOOKUP($M$18,Tablas!$A$307:$H$330,6,TRUE))) -> 24667.79 | L42: =IF($J$16=1,0,(VLOOKUP($M$18,Tablas!$A$307:$H$330,7,TRUE))) -> 19077.88 | M42: =IF($J$16=1,0,(VLOOKUP($M$18,Tablas!$A$307:$H$330,8,TRUE))) -> 15408.16
F43: Primas Hijos : | H43: n/a | I43: =IF($J$18=0,0,(VLOOKUP($J$18,Tablas!$A$331:$H$333,4,TRUE))) -> 5353 | J43: =IF($J$18=0,0,(VLOOKUP($J$18,Tablas!$A$331:$H$333,5,TRUE))) -> 3675.02 | K43: =IF($J$18=0,0,(VLOOKUP($J$18,Tablas!$A$331:$H$333,6,TRUE))) -> 2748.05 | L43: =IF($J$18=0,0,(VLOOKUP($J$18,Tablas!$A$331:$H$333,7,TRUE))) -> 2362.21 | M43: =IF($J$18=0,0,(VLOOKUP($J$18,Tablas!$A$331:$H$333,8,TRUE))) -> 1657.84
F44: Prima Rider Complic. Maternidad | H44: n/a | I44: =+IF($I$22=FALSE,0,Tablas!D$334) -> 0 | J44: =+IF($I$22=FALSE,0,Tablas!E$334) -> 0 | K44: =+IF($I$22=FALSE,0,Tablas!F$334) -> 0 | L44: =+IF($I$22=FALSE,0,Tablas!G$334) -> 0 | M44: =+IF($I$22=FALSE,0,Tablas!H$334) -> 0
F45: Prima Rider Trasplante Organos | H45: n/a | I45: =IF($I$24=FALSE,0,Tablas!D$335) -> 0 | J45: =IF($I$24=FALSE,0,Tablas!E$335) -> 0 | K45: =IF($I$24=FALSE,0,Tablas!F$335) -> 0 | L45: =IF($I$24=FALSE,0,Tablas!G$335) -> 0 | M45: =IF($I$24=FALSE,0,Tablas!H$335) -> 0
F46: TOTAL PRIMA NETA : | H46: n/a | I46: =SUM(I41:I45) -> 95510.24 | J46: 73656.22 | K46: 52083.63 | L46: 40517.97 | M46: 32474.16
F47: Costo Administrativo Anual : | H47: n/a | I47: 75 | J47: 75 | K47: 75 | L47: 75 | M47: 75
F48: GRAN TOTAL (1ra Cuota) : | H48: n/a | I48: =SUM(I46:I47) -> 95585.24 | J48: =SUM(J46:J47) -> 73731.22 | K48: =SUM(K46:K47) -> 52158.63 | L48: =SUM(L46:L47) -> 40592.97 | M48: =SUM(M46:M47) -> 32549.16
F49: GRAN TOTAL (2da Cuota) : | H49: n/a | I49: =I46 -> 95510.24 | J49: =J46 -> 73656.22 | K49: 52083.63 | L49: 40517.97 | M49: 32474.16
F50: Tarifas en US $ ¸— Válidas desde 1ro. de enero de 2023
F52: Este presupuesto solamente tiene carácter informativo y en ningún momento expresa compromiso legal para suministrarle cobertura de seguro. La emisión de una póliza de seguro Bupa está sujeta a todas las evaluaciones de riesgo por parte de Bupa y a la recepción de todos los pagos de prima requeridos.

Sheet Advantage (LA) (hidden)
A10: Cotización de Seguro Médico Internacional - Bupa ADVANTAGE Care (cobertura solo Latinoamérica)
A12: Bupa Advantage Care (cobertura solo en Latinoamérica) | H12: =+'INGRESO DE DATOS'!$D$12 -> NOMBRE COMPLETO
A13: Cobertura Máxima anual | C13: US $ 3,500,000
A14: Cobertura Geografica | C14: Limitada a Latinoamérica excluyendo México | H14: =+'INGRESO DE DATOS'!$D$21 -> NOMBRE DE LA AGENCIA/AGENTE
A15: Condiciones médicas cubiertas | C15: Todas las condiciones médicas
A16: Redes de proveedores | C16: Red de Proveedores "Bupa Advantage" | J16: =+'INGRESO DE DATOS'!$G$14 -> 2 | M16: =+'INGRESO DE DATOS'!$G$16 -> 74
A17: Opciones fuera de la Red | C17: NO, solo en casos de emergencia | F17: FECHA DE COTIZACION :
A18: Requiere preautorización | C18: SI, 30% de penalización por omitir prenotificación | F18: =NOW() -> 2022-12-22T15:27:35.570 | J18: =+'INGRESO DE DATOS'!$J$14 -> 3 | M18: =+'INGRESO DE DATOS'!$J$16 -> 74
A20: Número máximo de días de hospitalización | C20: Ilimitado | I20: TRUE | K20: COMPLICACIONES DE MATERNIDAD
A21: Habitación y alimentación | C21: 100% dentro de Red Bupa
C22: "UCR" para L.A. en emergencias fuera de Red Bupa | I22: TRUE | K22: TRASPLANTE DE ORGANOS
A23: Cuidados Intensivos | C23: 100% dentro de Red Bupa
C24: "UCR" para L.A. en emergencias fuera de Red Bupa
A25: Cobertura de Maternidad | C25: $5,000 (Excepto planes 4,5, y 6) | F25: Deducibles | H25: PLAN 1 | I25: PLAN 2 | J25: PLAN 3 | K25: PLAN 4 | L25: PLAN 5 | M25: PLAN 6
A26: Cobertura Provisional de Recién Nacido | C26: $30,000 por los primeros 90 días | F26: Dentro del pais de residencia | H26: n/a | I26: 1000 | J26: 2000 | K26: 5000 | L26: 10000 | M26: 20000
A27: Cuidado del Recién Nacido saludable | C27: Ya incluída dentro del beneficio de Maternidad | F27: Fuera del pais de residencia | H27: n/a | I27: 2000 | J27: 3000 | K27: 5000 | L27: 10000 | M27: 20000
A28: Cobertura de Complicaciones de Maternidad | C28: Disponible a través de cobertura opcional adicional
A29: Trasplante de Organos | C29: $1,000,000 de por vida, por diagnóstico
A30: Condiciones congénitas y hereditarias | C30: <18 años $300,000 de por vida; >=18 al 100% | F30: Tarifas Anuales
A31: Coberturas opcionales (Riders) | C31: Complicaciones de Maternidad por $500,000 | F31: Prima de Titular : | H31: n/a | I31: =VLOOKUP($M$16,Tablas!$A$341:$H$364,4,TRUE) -> 66124 | J31: =VLOOKUP($M$16,Tablas!$A$341:$H$364,5,TRUE) -> 51319 | K31: =VLOOKUP($M$16,Tablas!$A$341:$H$364,6,TRUE) -> 36208 | L31: =VLOOKUP($M$16,Tablas!$A$341:$H$364,7,TRUE) -> 27987 | M31: =VLOOKUP($M$16,Tablas!$A$341:$H$364,8,TRUE) -> 22614
C32: Trasplante de órganos por $ 300,000 adicionales | F32: Prima de Cónyuge | H32: n/a | I32: =IF($J$16=1,0,(VLOOKUP($M$18,Tablas!$A$341:$H$364,4,TRUE))) -> 66124 | J32: =IF($J$16=1,0,(VLOOKUP($M$18,Tablas!$A$341:$H$364,5,TRUE))) -> 51319 | K32: =IF($J$16=1,0,(VLOOKUP($M$18,Tablas!$A$341:$H$364,6,TRUE))) -> 36208 | L32: =IF($J$16=1,0,(VLOOKUP($M$18,Tablas!$A$341:$H$364,7,TRUE))) -> 27987 | M32: =IF($J$16=1,0,(VLOOKUP($M$18,Tablas!$A$341:$H$364,8,TRUE))) -> 22614
A33: Acompañamiento de menores hospitalizados | C33: $300 por día | F33: Primas Hijos : | H33: n/a | I33: =IF($J$18=0,0,(VLOOKUP($J$18,Tablas!$A$365:$H$367,4,TRUE))) -> 7845 | J33: =IF($J$18=0,0,(VLOOKUP($J$18,Tablas!$A$365:$H$367,5,TRUE))) -> 5394 | K33: =IF($J$18=0,0,(VLOOKUP($J$18,Tablas!$A$365:$H$367,6,TRUE))) -> 4041 | L33: =IF($J$18=0,0,(VLOOKUP($J$18,Tablas!$A$365:$H$367,7,TRUE))) -> 3473 | M33: =IF($J$18=0,0,(VLOOKUP($J$18,Tablas!$A$365:$H$367,8,TRUE))) -> 2440
A34: Ambulancia aérea | C34: $100,000 por año y ticket aéreo de retorno | F34: Prima Rider Complic. Maternidad | H34: n/a | I34: =+IF($I$20=FALSE,0,Tablas!D$368) -> 0 | J34: =+IF($I$20=FALSE,0,Tablas!E$368) -> 0 | K34: =+IF($I$20=FALSE,0,Tablas!F$368) -> 0 | L34: =+IF($I$20=FALSE,0,Tablas!G$368) -> 0 | M34: =+IF($I$20=FALSE,0,Tablas!H$368) -> 0
A35: Repatriación restos mortales | C35: 1 | F35: Prima Rider Trasplante Organos | H35: n/a | I35: =IF($I$22=FALSE,0,Tablas!D$369) -> 0 | J35: =IF($I$22=FALSE,0,Tablas!E$369) -> 0 | K35: =IF($I$22=FALSE,0,Tablas!F$369) -> 0 | L35: =IF($I$22=FALSE,0,Tablas!G$369) -> 0 | M35: =IF($I$22=FALSE,0,Tablas!H$369) -> 0
A36: Medicamentos por receta | C36: $6,000 por Asegurado, por año póliza | F36: TOTAL PRIMA NETA : | H36: n/a | I36: =SUM(I31:I35) -> 140093 | J36: 108032 | K36: 76457 | L36: 59447 | M36: 47668
A37: Almacenamiento de sangre de cordon umbilical | C37: $500 (Excepto planes 4,5, y 6) | F37: Costo Administrativo Anual : | H37: n/a | I37: 75 | J37: 75 | K37: 75 | L37: 75 | M37: 75
F38: GRAN TOTAL : | H38: n/a | I38: =SUM(I36:I37) -> 140168 | J38: =SUM(J36:J37) -> 108107 | K38: =SUM(K36:K37) -> 76532 | L38: =SUM(L36:L37) -> 59522 | M38: =SUM(M36:M37) -> 47743
A39: Atención médica en el hogar | C39: 100% de usual/acostumbrado y razonable
A40: Rehabilitación | C40: 100% de usual/acostumbrado y razonable | F40: Tarifas Semestrales
A41: Residencia y cuidados paliativos | C41: 100% de usual/acostumbrado y razonable | F41: Prima de Titular : | H41: n/a | I41: =VLOOKUP($M$16,Tablas!$A$374:$H$397,4,TRUE) -> 35045.72 | J41: =VLOOKUP($M$16,Tablas!$A$374:$H$397,5,TRUE) -> 27199.07 | K41: =VLOOKUP($M$16,Tablas!$A$374:$H$397,6,TRUE) -> 19190.24 | L41: =VLOOKUP($M$16,Tablas!$A$374:$H$397,7,TRUE) -> 14833.11 | M41: =VLOOKUP($M$16,Tablas!$A$374:$H$397,8,TRUE) -> 11985.42
A42: Cobertura de actividades peligrosas | C42: 1 | F42: Prima de Cónyuge | H42: n/a | I42: =IF($J$16=1,0,(VLOOKUP($M$18,Tablas!$A$374:$H$397,4,TRUE))) -> 35045.72 | J42: =IF($J$16=1,0,(VLOOKUP($M$18,Tablas!$A$374:$H$397,5,TRUE))) -> 27199.07 | K42: =IF($J$16=1,0,(VLOOKUP($M$18,Tablas!$A$374:$H$397,6,TRUE))) -> 19190.24 | L42: =IF($J$16=1,0,(VLOOKUP($M$18,Tablas!$A$374:$H$397,7,TRUE))) -> 14833.11 | M42: =IF($J$16=1,0,(VLOOKUP($M$18,Tablas!$A$374:$H$397,8,TRUE))) -> 11985.42
A43: Chequeos generales de rutina | C43: Hasta US$150 por año póliza.Sin deducible | F43: Primas Hijos : | H43: n/a | I43: =IF($J$18=0,0,(VLOOKUP($J$18,Tablas!$A$398:$H$400,4,TRUE))) -> 4157.85 | J43: =IF($J$18=0,0,(VLOOKUP($J$18,Tablas!$A$398:$H$400,5,TRUE))) -> 2858.82 | K43: =IF($J$18=0,0,(VLOOKUP($J$18,Tablas!$A$398:$H$400,6,TRUE))) -> 2141.73 | L43: =IF($J$18=0,0,(VLOOKUP($J$18,Tablas!$A$398:$H$400,7,TRUE))) -> 1840.69 | M43: =IF($J$18=0,0,(VLOOKUP($J$18,Tablas!$A$398:$H$400,8,TRUE))) -> 1293.2
A44: Cobertura de VIH, SIDA, CAS | C44: Solo como efecto de transfusión de sangre | F44: Prima Rider Complic. Maternidad | H44: n/a | I44: =+IF($I$20=FALSE,0,Tablas!D$401) -> 0 | J44: =+IF($I$20=FALSE,0,Tablas!E$401) -> 0 | K44: =+IF($I$20=FALSE,0,Tablas!F$401) -> 0 | L44: =+IF($I$20=FALSE,0,Tablas!G$401) -> 0 | M44: =+IF($I$20=FALSE,0,Tablas!H$401) -> 0
A45: Cobertura de brazos y piernas artificiales | C45: $30,000 por año y hasta $120,000 de por vida | F45: Prima Rider Trasplante Organos | H45: n/a | I45: =IF($I$22=FALSE,0,Tablas!D$402) -> 0 | J45: =IF($I$22=FALSE,0,Tablas!E$402) -> 0 | K45: =IF($I$22=FALSE,0,Tablas!F$402) -> 0 | L45: =IF($I$22=FALSE,0,Tablas!G$402) -> 0 | M45: =IF($I$22=FALSE,0,Tablas!H$402) -> 0
A46: Cobertura extendida para dependientes en caso de muerte de asegurado principal | C46: 2 años sin costo | F46: TOTAL PRIMA NETA : | H46: n/a | I46: =SUM(I41:I45) -> 74249.29 | J46: 57256.96 | K46: 40522.21 | L46: 31506.91 | M46: 25264.04
F47: Costo Administrativo Anual : | H47: n/a | I47: 75 | J47: 75 | K47: 75 | L47: 75 | M47: 75
F48: GRAN TOTAL (1ra Cuota) : | H48: n/a | I48: =SUM(I46:I47) -> 74324.29 | J48: =SUM(J46:J47) -> 57331.96 | K48: =SUM(K46:K47) -> 40597.21 | L48: =SUM(L46:L47) -> 31581.91 | M48: =SUM(M46:M47) -> 25339.04
F49: GRAN TOTAL (2da Cuota) : | H49: n/a | I49: =I46 -> 74249.29 | J49: =J46 -> 57256.96 | K49: 40522.21 | L49: 31506.91 | M49: 25264.04
F50: Tarifas en US $ - Válidas desde 01 Ene 2013

Sheet Secure
C10: Cotización de Seguro Médico Internacional - Bupa SECURE Care
G12: Nombre del asegurado : | H12: =+'INGRESO DE DATOS'!$D$12 -> NOMBRE COMPLETO
G14: Broker / Agente : | H14: =+'INGRESO DE DATOS'!$D$21 -> NOMBRE DE LA AGENCIA/AGENTE
I16: Número de adultos en la póliza: | J16: =+'INGRESO DE DATOS'!$G$14 -> 2 | L16: Edad de Titular : | M16: =+'INGRESO DE DATOS'!$G$16 -> 74
I18: Número hijos (menos 24 de años): | J18: =+'INGRESO DE DATOS'!$J$14 -> 3 | L18: Edad de Cónyuge: | M18: =+'INGRESO DE DATOS'!$J$16 -> 74
I20: Fecha de cotización: | J20: =NOW() -> 2022-12-22T15:27:35.570
I22: FALSE | K22: COMPLICACIONES DE MATERNIDAD
I24: FALSE | K24: TRASPLANTE DE ORGANOS
F26: Deducibles | H26: PLAN 1 | I26: PLAN 2 | J26: PLAN 3 | K26: PLAN 4 | L26: PLAN 5 | M26: PLAN 6
F27: Dentro del pais de residencia | H27: n/a | I27: 1000 | J27: 2000 | K27: 5000 | L27: 10000 | M27: 20000
F28: Fuera del pais de residencia | H28: n/a | I28: 2000 | J28: 3000 | K28: 5000 | L28: 10000 | M28: 20000
F30: Tarifas Anuales
F31: Prima de Titular : | H31: n/a | I31: =VLOOKUP($M$16,Tablas!$A$408:$H$431,4,TRUE) -> 55315 | J31: =VLOOKUP($M$16,Tablas!$A$408:$H$431,5,TRUE) -> 51644 | K31: =VLOOKUP($M$16,Tablas!$A$408:$H$431,6,TRUE) -> 33597 | L31: =VLOOKUP($M$16,Tablas!$A$408:$H$431,7,TRUE) -> 27479 | M31: =VLOOKUP($M$16,Tablas!$A$408:$H$431,8,TRUE) -> 20435
F32: Prima de Cónyuge | H32: n/a | I32: =IF($J$16=1,0,(VLOOKUP($M$18,Tablas!$A$408:$H$431,4,TRUE))) -> 55315 | J32: =IF($J$16=1,0,(VLOOKUP($M$18,Tablas!$A$408:$H$431,5,TRUE))) -> 51644 | K32: =IF($J$16=1,0,(VLOOKUP($M$18,Tablas!$A$408:$H$431,6,TRUE))) -> 33597 | L32: =IF($J$16=1,0,(VLOOKUP($M$18,Tablas!$A$408:$H$431,7,TRUE))) -> 27479 | M32: =IF($J$16=1,0,(VLOOKUP($M$18,Tablas!$A$408:$H$431,8,TRUE))) -> 20435
F33: Primas Hijos : | H33: n/a | I33: =IF($J$18=0,0,(VLOOKUP($J$18,Tablas!$A$432:$H$434,4,TRUE))) -> 9459 | J33: =IF($J$18=0,0,(VLOOKUP($J$18,Tablas!$A$432:$H$434,5,TRUE))) -> 4827 | K33: =IF($J$18=0,0,(VLOOKUP($J$18,Tablas!$A$432:$H$434,6,TRUE))) -> 4021 | L33: =IF($J$18=0,0,(VLOOKUP($J$18,Tablas!$A$432:$H$434,7,TRUE))) -> 3283 | M33: =IF($J$18=0,0,(VLOOKUP($J$18,Tablas!$A$432:$H$434,8,TRUE))) -> 2435
F34: Prima Rider Complic. Maternidad | H34: n/a | I34: =+IF($I$22=FALSE,0,Tablas!D$435) -> 0 | J34: =+IF($I$22=FALSE,0,Tablas!E$435) -> 0 | K34: =+IF($I$22=FALSE,0,Tablas!F$435) -> 0 | L34: =+IF($I$22=FALSE,0,Tablas!G$435) -> 0 | M34: =+IF($I$22=FALSE,0,Tablas!H$435) -> 0
F35: Prima Rider Trasplante Organos | H35: n/a | I35: =IF($I$24=FALSE,0,Tablas!D$436) -> 0 | J35: =IF($I$24=FALSE,0,Tablas!E$436) -> 0 | K35: =IF($I$24=FALSE,0,Tablas!F$436) -> 0 | L35: =IF($I$24=FALSE,0,Tablas!G$436) -> 0 | M35: =IF($I$24=FALSE,0,Tablas!H$436) -> 0
F36: TOTAL PRIMA NETA : | H36: n/a | I36: =SUM(I31:I35) -> 120089 | J36: 108115 | K36: 71215 | L36: 58241 | M36: 43305
F37: Costo Administrativo Anual : | H37: n/a | I37: 75 | J37: 75 | K37: 75 | L37: 75 | M37: 75
F38: GRAN TOTAL : | H38: n/a | I38: =SUM(I36:I37) -> 120164 | J38: =SUM(J36:J37) -> 108190 | K38: =SUM(K36:K37) -> 71290 | L38: =SUM(L36:L37) -> 58316 | M38: =SUM(M36:M37) -> 43380
F40: Tarifas Semestrales
F41: Prima de Titular : | H41: n/a | I41: =VLOOKUP($M$16,Tablas!$A$441:$H$464,4,TRUE) -> 29316.95 | J41: =VLOOKUP($M$16,Tablas!$A$441:$H$464,5,TRUE) -> 27371.32 | K41: =VLOOKUP($M$16,Tablas!$A$441:$H$464,6,TRUE) -> 17806.41 | L41: =VLOOKUP($M$16,Tablas!$A$441:$H$464,7,TRUE) -> 14563.87 | M41: =VLOOKUP($M$16,Tablas!$A$441:$H$464,8,TRUE) -> 10830.55
F42: Prima de Cónyuge | H42: n/a | I42: =IF($J$16=1,0,(VLOOKUP($M$18,Tablas!$A$441:$H$464,4,TRUE))) -> 29316.95 | J42: =IF($J$16=1,0,(VLOOKUP($M$18,Tablas!$A$441:$H$464,5,TRUE))) -> 27371.32 | K42: =IF($J$16=1,0,(VLOOKUP($M$18,Tablas!$A$441:$H$464,6,TRUE))) -> 17806.41 | L42: =IF($J$16=1,0,(VLOOKUP($M$18,Tablas!$A$441:$H$464,7,TRUE))) -> 14563.87 | M42: =IF($J$16=1,0,(VLOOKUP($M$18,Tablas!$A$441:$H$464,8,TRUE))) -> 10830.55
F43: Primas Hijos : | H43: n/a | I43: =IF($J$18=0,0,(VLOOKUP($J$18,Tablas!$A$465:$H$467,4,TRUE))) -> 5013.27 | J43: =IF($J$18=0,0,(VLOOKUP($J$18,Tablas!$A$465:$H$467,5,TRUE))) -> 2558.31 | K43: =IF($J$18=0,0,(VLOOKUP($J$18,Tablas!$A$465:$H$467,6,TRUE))) -> 2131.13 | L43: =IF($J$18=0,0,(VLOOKUP($J$18,Tablas!$A$465:$H$467,7,TRUE))) -> 1739.99 | M43: =IF($J$18=0,0,(VLOOKUP($J$18,Tablas!$A$465:$H$467,8,TRUE))) -> 1290.55
F44: Prima Rider Complic. Maternidad | H44: n/a | I44: =+IF($I$22=FALSE,0,Tablas!D$468) -> 0 | J44: =+IF($I$22=FALSE,0,Tablas!E$468) -> 0 | K44: =+IF($I$22=FALSE,0,Tablas!F$468) -> 0 | L44: =+IF($I$22=FALSE,0,Tablas!G$468) -> 0 | M44: =+IF($I$22=FALSE,0,Tablas!H$468) -> 0
F45: Prima Rider Trasplante Organos | H45: n/a | I45: =IF($I$24=FALSE,0,Tablas!D$469) -> 0 | J45: =IF($I$24=FALSE,0,Tablas!E$469) -> 0 | K45: =IF($I$24=FALSE,0,Tablas!F$469) -> 0 | L45: =IF($I$24=FALSE,0,Tablas!G$469) -> 0 | M45: =IF($I$24=FALSE,0,Tablas!H$469) -> 0
F46: TOTAL PRIMA NETA : | H46: n/a | I46: =SUM(I41:I45) -> 63647.17 | J46: 57300.95 | K46: 37743.95 | L46: 30867.73 | M46: 22951.65
F47: Costo Administrativo Anual : | H47: n/a | I47: 75 | J47: 75 | K47: 75 | L47: 75 | M47: 75
F48: GRAN TOTAL (1ra Cuota) : | H48: n/a | I48: =SUM(I46:I47) -> 63722.17 | J48: =SUM(J46:J47) -> 57375.95 | K48: =SUM(K46:K47) -> 37818.95 | L48: =SUM(L46:L47) -> 30942.73 | M48: =SUM(M46:M47) -> 23026.65
F49: GRAN TOTAL (2da Cuota) : | H49: n/a | I49: =I46 -> 63647.17 | J49: =J46 -> 57300.95 | K49: 37743.95 | L49: 30867.73 | M49: 22951.65
F50: Tarifas en US $ ¸— Válidas desde 1ro. de enero de 2023
F52: Este presupuesto solamente tiene carácter informativo y en ningún momento expresa compromiso legal para suministrarle cobertura de seguro. La emisión de una póliza de seguro Bupa está sujeta a todas las evaluaciones de riesgo por parte de Bupa y a la recepción de todos los pagos de prima requeridos.

Sheet Essential
C10: Cotización de Seguro Médico Internacional - Bupa ESSENTIAL Care
G12: Nombre del asegurado : | H12: =+'INGRESO DE DATOS'!$D$12 -> NOMBRE COMPLETO
G14: Broker / Agente : | H14: =+'INGRESO DE DATOS'!$D$21 -> NOMBRE DE LA AGENCIA/AGENTE
I16: Número de adultos en la póliza: | J16: =+'INGRESO DE DATOS'!$G$14 -> 2 | L16: Edad de Titular : | M16: =+'INGRESO DE DATOS'!$G$16 -> 74
I18: Número hijos (menos 24 de años): | J18: =+'INGRESO DE DATOS'!$J$14 -> 3 | L18: Edad de Cónyuge: | M18: =+'INGRESO DE DATOS'!$J$16 -> 74
I20: Fecha de cotización: | J20: =NOW() -> 2022-12-22T15:27:35.570
I22: FALSE | K22: COMPLICACIONES DE MATERNIDAD
I24: FALSE | K24: TRASPLANTE DE ORGANOS
F26: Deducibles | H26: PLAN 1 | I26: PLAN 2 | J26: PLAN 3 | K26: PLAN 4 | L26: PLAN 5 | M26: PLAN 6
F27: Dentro del pais de residencia | H27: n/a | I27: 1000 | J27: 2000 | K27: 5000 | L27: 10000 | M27: 20000
F28: Fuera del pais de residencia | H28: n/a | I28: 2000 | J28: 3000 | K28: 5000 | L28: 10000 | M28: 20000
F30: Tarifas Anuales
F31: Prima de Titular : | H31: n/a | I31: =VLOOKUP($M$16,Tablas!$A$475:$H$498,4,TRUE) -> 45833 | J31: =VLOOKUP($M$16,Tablas!$A$475:$H$498,5,TRUE) -> 42794 | K31: =VLOOKUP($M$16,Tablas!$A$475:$H$498,6,TRUE) -> 27831 | L31: =VLOOKUP($M$16,Tablas!$A$475:$H$498,7,TRUE) -> 22760 | M31: =VLOOKUP($M$16,Tablas!$A$475:$H$498,8,TRUE) -> 16917
F32: Prima de Cónyuge | H32: n/a | I32: =IF($J$16=1,0,(VLOOKUP($M$18,Tablas!$A$475:$H$498,4,TRUE))) -> 45833 | J32: =IF($J$16=1,0,(VLOOKUP($M$18,Tablas!$A$475:$H$498,5,TRUE))) -> 42794 | K32: =IF($J$16=1,0,(VLOOKUP($M$18,Tablas!$A$475:$H$498,6,TRUE))) -> 27831 | L32: =IF($J$16=1,0,(VLOOKUP($M$18,Tablas!$A$475:$H$498,7,TRUE))) -> 22760 | M32: =IF($J$16=1,0,(VLOOKUP($M$18,Tablas!$A$475:$H$498,8,TRUE))) -> 16917
F33: Primas Hijos : | H33: n/a | I33: =IF($J$18=0,0,(VLOOKUP($J$18,Tablas!$A$499:$H$501,4,TRUE))) -> 7841 | J33: =IF($J$18=0,0,(VLOOKUP($J$18,Tablas!$A$499:$H$501,5,TRUE))) -> 3997 | K33: =IF($J$18=0,0,(VLOOKUP($J$18,Tablas!$A$499:$H$501,6,TRUE))) -> 3340 | L33: =IF($J$18=0,0,(VLOOKUP($J$18,Tablas!$A$499:$H$501,7,TRUE))) -> 2720 | M33: =IF($J$18=0,0,(VLOOKUP($J$18,Tablas!$A$499:$H$501,8,TRUE))) -> 2012
F34: Prima Rider Complic. Maternidad | H34: n/a | I34: =+IF($I$22=FALSE,0,Tablas!D$502) -> 0 | J34: =+IF($I$22=FALSE,0,Tablas!E$502) -> 0 | K34: =+IF($I$22=FALSE,0,Tablas!F$502) -> 0 | L34: =+IF($I$22=FALSE,0,Tablas!G$502) -> 0 | M34: =+IF($I$22=FALSE,0,Tablas!H$502) -> 0
F35: Prima Rider Trasplante Organos | H35: n/a | I35: =IF($I$24=FALSE,0,Tablas!D$503) -> 0 | J35: =IF($I$24=FALSE,0,Tablas!E$503) -> 0 | K35: =IF($I$24=FALSE,0,Tablas!F$503) -> 0 | L35: =IF($I$24=FALSE,0,Tablas!G$503) -> 0 | M35: =IF($I$24=FALSE,0,Tablas!H$503) -> 0
F36: TOTAL PRIMA NETA : | H36: n/a | I36: =SUM(I31:I35) -> 99507 | J36: 89585 | K36: 59002 | L36: 48240 | M36: 35846
F37: Costo Administrativo Anual : | H37: n/a | I37: 75 | J37: 75 | K37: 75 | L37: 75 | M37: 75
F38: GRAN TOTAL : | H38: n/a | I38: =SUM(I36:I37) -> 99582 | J38: =SUM(J36:J37) -> 89660 | K38: =SUM(K36:K37) -> 59077 | L38: =SUM(L36:L37) -> 48315 | M38: =SUM(M36:M37) -> 35921
F40: Tarifas Semestrales
F41: Prima de Titular : | H41: n/a | I41: =VLOOKUP($M$16,Tablas!$A$508:$H$531,4,TRUE) -> 24291.49 | J41: =VLOOKUP($M$16,Tablas!$A$508:$H$531,5,TRUE) -> 22680.82 | K41: =VLOOKUP($M$16,Tablas!$A$508:$H$531,6,TRUE) -> 14750.43 | L41: =VLOOKUP($M$16,Tablas!$A$508:$H$531,7,TRUE) -> 12062.8 | M41: =VLOOKUP($M$16,Tablas!$A$508:$H$531,8,TRUE) -> 8966.01
F42: Prima de Cónyuge | H42: n/a | I42: =IF($J$16=1,0,(VLOOKUP($M$18,Tablas!$A$508:$H$531,4,TRUE))) -> 24291.49 | J42: =IF($J$16=1,0,(VLOOKUP($M$18,Tablas!$A$508:$H$531,5,TRUE))) -> 22680.82 | K42: =IF($J$16=1,0,(VLOOKUP($M$18,Tablas!$A$508:$H$531,6,TRUE))) -> 14750.43 | L42: =IF($J$16=1,0,(VLOOKUP($M$18,Tablas!$A$508:$H$531,7,TRUE))) -> 12062.8 | M42: =IF($J$16=1,0,(VLOOKUP($M$18,Tablas!$A$508:$H$531,8,TRUE))) -> 8966.01
F43: Primas Hijos : | H43: n/a | I43: =IF($J$18=0,0,(VLOOKUP($J$18,Tablas!$A$532:$H$534,4,TRUE))) -> 4155.73 | J43: =IF($J$18=0,0,(VLOOKUP($J$18,Tablas!$A$532:$H$534,5,TRUE))) -> 2118.41 | K43: =IF($J$18=0,0,(VLOOKUP($J$18,Tablas!$A$532:$H$534,6,TRUE))) -> 1770.2 | L43: =IF($J$18=0,0,(VLOOKUP($J$18,Tablas!$A$532:$H$534,7,TRUE))) -> 1441.6 | M43: =IF($J$18=0,0,(VLOOKUP($J$18,Tablas!$A$532:$H$534,8,TRUE))) -> 1066.36
F44: Prima Rider Complic. Maternidad | H44: n/a | I44: =+IF($I$22=FALSE,0,Tablas!D$535) -> 0 | J44: =+IF($I$22=FALSE,0,Tablas!E$535) -> 0 | K44: =+IF($I$22=FALSE,0,Tablas!F$535) -> 0 | L44: =+IF($I$22=FALSE,0,Tablas!G$535) -> 0 | M44: =+IF($I$22=FALSE,0,Tablas!H$535) -> 0
F45: Prima Rider Trasplante Organos | H45: n/a | I45: =IF($I$24=FALSE,0,Tablas!D$536) -> 0 | J45: =IF($I$24=FALSE,0,Tablas!E$536) -> 0 | K45: =IF($I$24=FALSE,0,Tablas!F$536) -> 0 | L45: =IF($I$24=FALSE,0,Tablas!G$536) -> 0 | M45: =IF($I$24=FALSE,0,Tablas!H$536) -> 0
F46: TOTAL PRIMA NETA : | H46: n/a | I46: =SUM(I41:I45) -> 52738.71 | J46: 47480.05 | K46: 31271.06 | L46: 25567.2 | M46: 18998.38
F47: Costo Administrativo Anual : | H47: n/a | I47: 75 | J47: 75 | K47: 75 | L47: 75 | M47: 75
F48: GRAN TOTAL (1ra Cuota) : | H48: n/a | I48: =SUM(I46:I47) -> 52813.71 | J48: =SUM(J46:J47) -> 47555.05 | K48: =SUM(K46:K47) -> 31346.06 | L48: =SUM(L46:L47) -> 25642.2 | M48: =SUM(M46:M47) -> 19073.38
F49: GRAN TOTAL (2da Cuota) : | H49: n/a | I49: =I46 -> 52738.71 | J49: =J46 -> 47480.05 | K49: 31271.06 | L49: 25567.2 | M49: 18998.38
F50: Tarifas en US $ ¸— Válidas desde 1ro. de enero de 2023
F52: Este presupuesto solamente tiene carácter informativo y en ningún momento expresa compromiso legal para suministrarle cobertura de seguro. La emisión de una póliza de seguro Bupa está sujeta a todas las evaluaciones de riesgo por parte de Bupa y a la recepción de todos los pagos de prima requeridos.

Sheet Critical
C10: Cotización de Seguro Médico Internacional - Bupa CRITICAL Care
G12: Nombre del asegurado : | H12: =+'INGRESO DE DATOS'!$D$12 -> NOMBRE COMPLETO
G14: Broker / Agente : | H14: =+'INGRESO DE DATOS'!$D$21 -> NOMBRE DE LA AGENCIA/AGENTE
I16: Número de adultos en la póliza: | J16: =+'INGRESO DE DATOS'!$G$14 -> 2 | L16: Edad de Titular : | M16: =+'INGRESO DE DATOS'!$G$16 -> 74
I18: Número hijos (menos 24 de años): | J18: =+'INGRESO DE DATOS'!$J$14 -> 3 | L18: Edad de Cónyuge: | M18: =+'INGRESO DE DATOS'!$J$16 -> 74
I20: Fecha de cotización: | J20: =NOW() -> 2022-12-22T15:27:35.570 | L20: Edad del adulto mayor en la pareja : | M20: =IF(M16>=M18,M16,M18) -> 74
F22: CONDICION CRITICA CUBIERTA | I22: MAXIMO POR AÑO POLIZA | K22: TRASPLANTE DE ORGANOS
F24: Enfermedades neurológicas y accidentes cerebro-vasculares | I24: 150000 | K24: Tipo de trasplante | M24: Máximo Vitalicio
I25: por asegurado por año póliza | M25: por persona
F26: Cirugías cardíacas y angioplastías | I26: 150000 | K26: Corazón | M26: 300000
I27: por asegurado por año póliza | K27: Corazón y Pulmón (simultáneamente) | M27: 300000
F28: Tratamiento de cáncer | I28: 200000 | K28: Pulmón | M28: 250000
I29: por asegurado por año póliza | K29: Pancreas | M29: 250000
F30: Trauma grave (Politraumatismos) | I30: 150000 | K30: Pancreas y Riñón (simultáneamente) | M30: 300000
I31: por asegurado por año póliza | K31: Riñón | M31: 200000
F32: Insuficiencia renal crónica (Diálisis) | I32: 100000 | K32: Hígado | M32: 200000
I33: por asegurado por año póliza | K33: Médula ósea | M33: 250000
F34: Quemaduras graves | I34: 300000 | K34: La cobertura de trasplante de órganos está limitada a la Red de Proveedores para Procedimiento de Trasplante de la Compañía y no se proporcionará cobertura en proveedores fuera de esta Red especializada.
I35: por asegurado por año póliza
F36: Desorden infeccioso grave (Septicemia) | I36: 150000
I37: por asegurado por año póliza
F39: Deducibles | H39: PLAN 1 | I39: PLAN 2 | J39: PLAN 3 | K39: PLAN 4 | L39: PLAN 5 | M39: PLAN 6
F40: Dentro del pais de residencia | H40: 2000 | I40: 3500 | J40: 5000 | K40: 10000 | L40: 20000 | M40: 50000
F41: Fuera del pais de residencia | H41: 2000 | I41: 3500 | J41: 5000 | K41: 10000 | L41: 20000 | M41: 50000
F43: Tarifas Anuales
F44: Prima por plan individual : | H44: =IF((($J$16+$J$18)=1),(VLOOKUP($M$20,Tablas!$A$543:$T$544,3,TRUE)),0) -> 0 | I44: =IF((($J$16+$J$18)=1),(VLOOKUP($M$20,Tablas!$A$543:$T$544,6,TRUE)),0) -> 0 | J44: =IF((($J$16+$J$18)=1),(VLOOKUP($M$20,Tablas!$A$543:$T$544,9,TRUE)),0) -> 0 | K44: =IF((($J$16+$J$18)=1),(VLOOKUP($M$20,Tablas!$A$543:$T$544,12,TRUE)),0) -> 0 | L44: =IF((($J$16+$J$18)=1),(VLOOKUP($M$20,Tablas!$A$543:$T$544,15,TRUE)),0) -> 0 | M44: =IF((($J$16+$J$18)=1),(VLOOKUP($M$20,Tablas!$A$543:$T$544,18,TRUE)),0) -> 0
F45: Prima por plan para 2 personas : | H45: =IF((($J$16+$J$18)=2),(VLOOKUP($M$20,Tablas!$A$543:$T$544,4,TRUE)),0) -> 0 | I45: =IF((($J$16+$J$18)=2),(VLOOKUP($M$20,Tablas!$A$543:$T$544,7,TRUE)),0) -> 0 | J45: =IF((($J$16+$J$18)=2),(VLOOKUP($M$20,Tablas!$A$543:$T$544,10,TRUE)),0) -> 0 | K45: =IF((($J$16+$J$18)=2),(VLOOKUP($M$20,Tablas!$A$543:$T$544,13,TRUE)),0) -> 0 | L45: =IF((($J$16+$J$18)=2),(VLOOKUP($M$20,Tablas!$A$543:$T$544,16,TRUE)),0) -> 0 | M45: =IF((($J$16+$J$18)=2),(VLOOKUP($M$20,Tablas!$A$543:$T$544,19,TRUE)),0) -> 0
F46: Prima por plan familiar : | H46: =IF((($J$16+$J$18)>=3),(VLOOKUP($M$20,Tablas!$A$543:$T$544,5,TRUE)),0) -> 10467 | I46: =IF((($J$16+$J$18)>=3),(VLOOKUP($M$20,Tablas!$A$543:$T$544,8,TRUE)),0) -> 8126 | J46: =IF((($J$16+$J$18)>=3),(VLOOKUP($M$20,Tablas!$A$543:$T$544,11,TRUE)),0) -> 6980 | K46: =IF((($J$16+$J$18)>=3),(VLOOKUP($M$20,Tablas!$A$543:$T$544,14,TRUE)),0) -> 5352 | L46: =IF((($J$16+$J$18)>=3),(VLOOKUP($M$20,Tablas!$A$543:$T$544,17,TRUE)),0) -> 3782 | M46: =IF((($J$16+$J$18)>=3),(VLOOKUP($M$20,Tablas!$A$543:$T$544,20,TRUE)),0) -> 2065
F47: TOTAL PRIMA NETA : | H47: =SUM(H44:H46) -> 10467 | I47: =SUM(I44:I46) -> 8126 | J47: 6980 | K47: 5352 | L47: 3782 | M47: 2065
F48: Costo Administrativo Anual : | H48: 75 | I48: 75 | J48: 75 | K48: 75 | L48: 75 | M48: 75
F49: GRAN TOTAL : | H49: =SUM(H47:H48) -> 10542 | I49: 8201 | J49: 7055 | K49: 5427 | L49: 3857 | M49: 2140
F50: Tarifas en US $ ¸— Válidas desde 1ro. de enero de 2023
F53: Este presupuesto solamente tiene carácter informativo y en ningún momento expresa compromiso legal para suministrarle cobertura de seguro. La emisión de una póliza de seguro Bupa está sujeta a todas las evaluaciones de riesgo por parte de Bupa y a la recepción de todos los pagos de prima requeridos.

Sheet Resumen tarifas anuales
C12: Cotización de Seguro Médico Internacional - BUPA CARE
C14: =+'INGRESO DE DATOS'!$D$12 -> NOMBRE COMPLETO
C16: =+'INGRESO DE DATOS'!$D$21 -> NOMBRE DE LA AGENCIA/AGENTE
E18: =+'INGRESO DE DATOS'!$G$14 -> 2 | H18: =+'INGRESO DE DATOS'!$G$16 -> 74
A19: FECHA DE COTIZACION :
A20: =NOW() -> 2022-12-22T15:27:35.570 | E20: =+'INGRESO DE DATOS'!$J$14 -> 3 | H20: =+'INGRESO DE DATOS'!$J$16 -> 74
A22: Deducibles | C22: PLAN 1 | D22: PLAN 2 | E22: PLAN 3 | F22: PLAN 4 | G22: PLAN 5 | H22: PLAN 6
A23: Dentro del pais de residencia | C23: n/a | D23: 1000 | E23: 2000 | F23: 5000 | G23: 10000 | H23: 20000
A24: Fuera del pais de residencia | C24: n/a | D24: 2000 | E24: 3000 | F24: 5000 | G24: 10000 | H24: 20000
A26: PRODUCTOS | C26: Tarifas Anuales
A27: Bupa Exclusive Care | C27: n/a | D27: =+Exclusive!I36 -> 322632 | E27: =+Exclusive!J36 -> 222318 | F27: =+Exclusive!K36 -> 155669 | G27: =+Exclusive!L36 -> 136001 | H27: =+Exclusive!M36 -> 117491
A28: Bupa Privilege Care | C28: n/a | D28: =+Privilege!I35 -> 276999 | E28: =+Privilege!J35 -> 193974 | F28: =+Privilege!K35 -> 134356 | G28: =+Privilege!L35 -> 118430 | H28: =+Privilege!M35 -> 100902
A29: Bupa Advantage Care | C29: n/a | D29: =+'Advantage (Mundial)'!I38 -> 180283 | E29: =+'Advantage (Mundial)'!J38 -> 139049 | F29: =+'Advantage (Mundial)'!K38 -> 98346 | G29: =+'Advantage (Mundial)'!L38 -> 76524 | H29: =+'Advantage (Mundial)'!M38 -> 61347
A30: Bupa Secure Care | C30: n/a | D30: =+Secure!I38 -> 120164 | E30: =+Secure!J38 -> 108190 | F30: =+Secure!K38 -> 71290 | G30: =+Secure!L38 -> 58316 | H30: =+Secure!M38 -> 43380
A31: Bupa Essential Care | C31: n/a | D31: =+Essential!I38 -> 99582 | E31: =+Essential!J38 -> 89660 | F31: =+Essential!K38 -> 59077 | G31: =+Essential!L38 -> 48315 | H31: =+Essential!M38 -> 35921
A33: Deducibles | C33: PLAN 1 | D33: PLAN 2 | E33: PLAN 3 | F33: PLAN 4 | G33: PLAN 5 | H33: PLAN 6
A34: Dentro del pais de residencia | C34: 2000 | D34: 3500 | E34: 5000 | F34: 10000 | G34: 20000 | H34: 50000
A35: Fuera del pais de residencia | C35: 2000 | D35: 3500 | E35: 5000 | F35: 10000 | G35: 20000 | H35: 50000
C36: Tarifas Anuales
A37: Bupa Critical Care | C37: =+Critical!H49 -> 10542 | D37: =+Critical!I49 -> 8201 | E37: =+Critical!J49 -> 7055 | F37: =+Critical!K49 -> 5427 | G37: =+Critical!L49 -> 3857 | H37: =+Critical!M49 -> 2140
A38: Tarifas en US $ ¸— Válidas desde 1ro. de enero de 2023
A40: Este presupuesto solamente tiene carácter informativo y en ningún momento expresa compromiso legal para suministrarle cobertura de seguro. La emisión de una póliza de seguro Bupa está sujeta a todas las evaluaciones de riesgo por parte de Bupa y a la recepción de todos los pagos de prima requeridos.

Sheet Comparacion de Beneficios
B2: 2023 BUPA CARE COMPARACION DE BENEFICIOS

Sheet Tablas (hidden)
A2: EXCLUSIVE | J2: FACTOR SEMESTRAL : | L2: 0.53
A3: TARIFAS ANUALES
A4: EDAD | I4: OK
D5: DW2 | E5: DW3 | F5: DW4 | G5: DW5 | H5: DW6 | J5: DW2 | K5: DW3 | L5: DW4 | M5: DW5 | N5: DW6 | O5: DW2 | P5: DW3 | Q5: DW4 | R5: DW5 | S5: DW6
A6: 18 | B6: - 24 | D6: =O6 -> 17297 | E6: =P6 -> 11429 | F6: 7624 | G6: 5312 | H6: 4181 | J6: 17297 | K6: 11429 | L6: 7624 | M6: 5312 | N6: 4181 | O6: =(J6-50)*1+50 -> 17297 | P6: =(K6-50)*1+50 -> 11429 | Q6: 7624 | R6: 5312 | S6: 4181
A7: 25 | B7: - 29 | D7: =O7 -> 18146 | E7: =P7 -> 12632 | F7: =Q7 -> 8448 | G7: =R7 -> 5891 | H7: =S7 -> 4630 | J7: 18146 | K7: 12632 | L7: 8448 | M7: 5891 | N7: 4630 | O7: =(J7-50)*1+50 -> 18146 | P7: =(K7-50)*1+50 -> 12632 | Q7: =(L7-50)*1+50 -> 8448 | R7: =(M7-50)*1+50 -> 5891 | S7: =(N7-50)*1+50 -> 4630
A8: 30 | B8: - 34 | D8: 18876 | E8: 13546 | F8: 9457 | G8: 7063 | H8: 5569 | J8: 18876 | K8: 13546 | L8: 9457 | M8: 7063 | N8: 5569 | O8: 18876 | P8: 13546 | Q8: 9457 | R8: 7063 | S8: 5569
A9: 35 | B9: - 39 | D9: 21141 | E9: 15165 | F9: 10604 | G9: 7916 | H9: 6236 | J9: 21141 | K9: 15165 | L9: 10604 | M9: 7916 | N9: 6236 | O9: 21141 | P9: 15165 | Q9: 10604 | R9: 7916 | S9: 6236
A10: 40 | B10: - 44 | D10: 24519 | E10: 16589 | F10: 11771 | G10: 8706 | H10: 6857 | J10: 24519 | K10: 16589 | L10: 11771 | M10: 8706 | N10: 6857 | O10: 24519 | P10: 16589 | Q10: 11771 | R10: 8706 | S10: 6857
A11: 45 | B11: - 49 | D11: 27411 | E11: 18554 | F11: 13156 | G11: 9725 | H11: 7666 | J11: 27411 | K11: 18554 | L11: 13156 | M11: 9725 | N11: 7666 | O11: 27411 | P11: 18554 | Q11: 13156 | R11: 9725 | S11: 7666
A12: 50 | B12: - 54 | D12: 35075 | E12: 24344 | F12: 17167 | G12: 13750 | H12: 10838 | J12: 35075 | K12: 24344 | L12: 17167 | M12: 13750 | N12: 10838 | O12: 35075 | P12: 24344 | Q12: 17167 | R12: 13750 | S12: 10838
A13: 55 | B13: - 59 | D13: 37319 | E13: 25906 | F13: 18260 | G13: 14628 | H13: 11537 | J13: 37319 | K13: 25906 | L13: 18260 | M13: 14628 | N13: 11537 | O13: 37319 | P13: 25906 | Q13: 18260 | R13: 14628 | S13: 11537
A14: 60 | D14: 40654 | E14: 28261 | F14: 21020 | G14: 17622 | H14: 14335 | J14: 40654 | K14: 28261 | L14: 21020 | M14: 17622 | N14: 14335 | O14: 40654 | P14: 28261 | Q14: 21020 | R14: 17622 | S14: 14335
A15: 61 | D15: 43676 | E15: 30370 | F15: 22573 | G15: 18947 | H15: 15402 | J15: 43676 | K15: 30370 | L15: 22573 | M15: 18947 | N15: 15402 | O15: 43676 | P15: 30370 | Q15: 22573 | R15: 18947 | S15: 15402
A16: 62 | D16: 47819 | E16: 33261 | F16: 24726 | G16: 20733 | H16: 16866 | J16: 47819 | K16: 33261 | L16: 24726 | M16: 20733 | N16: 16866 | O16: 47819 | P16: 33261 | Q16: 24726 | R16: 20733 | S16: 16866
A17: 63 | D17: 50846 | E17: 35366 | F17: 26279 | G17: 22060 | H17: 17928 | J17: 50846 | K17: 35366 | L17: 26279 | M17: 22060 | N17: 17928 | O17: 50846 | P17: 35366 | Q17: 26279 | R17: 22060 | S17: 17928
A18: 64 | D18: 54999 | E18: 38265 | F18: 28443 | G18: 23856 | H18: 19411 | J18: 54999 | K18: 38265 | L18: 28443 | M18: 23856 | N18: 19411 | O18: 54999 | P18: 38265 | Q18: 28443 | R18: 23856 | S18: 19411
A19: 65 | D19: 71904 | E19: 49915 | F19: 35962 | G19: 31821 | H19: 27372 | J19: 71904 | K19: 49915 | L19: 35962 | M19: 31821 | N19: 27372 | O19: 71904 | P19: 49915 | Q19: 35962 | R19: 31821 | S19: 27372
A20: 66 | D20: 83533 | E20: 58001 | F20: 41785 | G20: 36993 | H20: 31801 | J20: 83533 | K20: 58001 | L20: 41785 | M20: 36993 | N20: 31801 | O20: 83533 | P20: 58001 | Q20: 41785 | R20: 36993 | S20: 31801
A21: 67 | D21: 91245 | E21: 63349 | F21: 45642 | G21: 40394 | H21: 34741 | J21: 91245 | K21: 63349 | L21: 45642 | M21: 40394 | N21: 34741 | O21: 91245 | P21: 63349 | Q21: 45642 | R21: 40394 | S21: 34741
A22: 68 | D22: 101035 | E22: 70139 | F22: 50541 | G22: 44738 | H22: 38468 | J22: 101035 | K22: 70139 | L22: 50541 | M22: 44738 | N22: 38468 | O22: 101035 | P22: 70139 | Q22: 50541 | R22: 44738 | S22: 38468
A23: 69 | D23: 111166 | E23: 77167 | F23: 55611 | G23: 49219 | H23: 42332 | J23: 111166 | K23: 77167 | L23: 55611 | M23: 49219 | N23: 42332 | O23: 111166 | P23: 77167 | Q23: 55611 | R23: 49219 | S23: 42332
A24: 70 | D24: 136809 | E24: 93969 | F24: 65464 | G24: 57349 | H24: 49798 | J24: 136809 | K24: 93969 | L24: 65464 | M24: 57349 | N24: 49798 | O24: 136809 | P24: 93969 | Q24: 65464 | R24: 57349 | S24: 49798
A25: 71 | D25: 142188 | E25: 97655 | F25: 68040 | G25: 59610 | H25: 51754 | J25: 142188 | K25: 97655 | L25: 68040 | M25: 59610 | N25: 51754 | O25: 142188 | P25: 97655 | Q25: 68040 | R25: 59610 | S25: 51754
A26: 72 | D26: 146216 | E26: 100421 | F26: 69952 | G26: 61298 | H26: 53218 | J26: 146216 | K26: 100421 | L26: 69952 | M26: 61298 | N26: 53218 | O26: 146216 | P26: 100421 | Q26: 69952 | R26: 61298 | S26: 53218
A27: 73 | D27: 151584 | E27: 104116 | F27: 72526 | G27: 63554 | H27: 55163 | J27: 151584 | K27: 104116 | L27: 72526 | M27: 63554 | N27: 55163 | O27: 151584 | P27: 104116 | Q27: 72526 | R27: 63554 | S27: 55163
A28: 74 | D28: 154269 | E28: 105957 | F28: 73824 | G28: 64678 | H28: 56150 | J28: 154269 | K28: 105957 | L28: 73824 | M28: 64678 | N28: 56150 | O28: 154269 | P28: 105957 | Q28: 73824 | R28: 64678 | S28: 56150
A29: 75 | B29: o más | D29: 160984 | E29: 110566 | F29: 77024 | G29: 67495 | H29: 58603 | J29: 160984 | K29: 110566 | L29: 77024 | M29: 67495 | N29: 58603 | O29: 160984 | P29: 110566 | Q29: 77024 | R29: 67495 | S29: 58603
A30: 1 | B30: Hijo | D30: 6010 | E30: 4427 | F30: 3410 | G30: 2825 | H30: 2197 | J30: 6010 | K30: 4427 | L30: 3410 | M30: 2825 | N30: 2197 | O30: =(J30)*1 -> 6010 | P30: =(K30)*1 -> 4427 | Q30: 3410 | R30: 2825 | S30: 2197
A31: 2 | B31: Hijos | D31: 9560 | E31: 7052 | F31: 5427 | G31: 4483 | H31: 3496 | J31: 9560 | K31: 7052 | L31: 5427 | M31: 4483 | N31: 3496 | O31: =(J31)*1 -> 9560 | P31: =(K31)*1 -> 7052 | Q31: =(L31)*1 -> 5427 | R31: =(M31)*1 -> 4483 | S31: =(N31)*1 -> 3496
A32: 3 | B32: Hijos o más | D32: 14019 | E32: 10329 | F32: 7946 | G32: 6570 | H32: 5116 | J32: 14019 | K32: 10329 | L32: 7946 | M32: 6570 | N32: 5116 | O32: 14019 | P32: 10329 | Q32: 7946 | R32: 6570 | S32: 5116
A33: 1 | B33: Rider Comp. Maternidad | D33: 0 | E33: 0 | F33: 225 | G33: 225 | H33: 225
A34: 1 | B34: Transplante de organos | D34: 0 | E34: 0 | F34: 0 | G34: 0 | H34: 0
I35: OK
A36: TARIFAS SEMESTRALES
A37: EDAD
D38: DW2 | E38: DW3 | F38: DW4 | G38: DW5 | H38: DW6
A39: 18 | B39: - 24 | D39: =D6*$L$2 -> 9167.41 | E39: =E6*$L$2 -> 6057.37 | F39: 4040.72 | G39: 2815.36 | H39: 2215.93
A40: 25 | B40: - 29 | D40: =D7*$L$2 -> 9617.38 | E40: 6694.96 | F40: 4477.44 | G40: 3122.23 | H40: 2453.9
A41: 30 | B41: - 34 | D41: =D8*$L$2 -> 10004.28 | E41: 7179.38 | F41: 5012.21 | G41: 3743.39 | H41: 2951.57
A42: 35 | B42: - 39 | D42: =D9*$L$2 -> 11204.73 | E42: 8037.45 | F42: 5620.12 | G42: 4195.48 | H42: 3305.08
A43: 40 | B43: - 44 | D43: =D10*$L$2 -> 12995.07 | E43: 8792.17 | F43: 6238.63 | G43: 4614.18 | H43: 3634.21
A44: 45 | B44: - 49 | D44: =D11*$L$2 -> 14527.83 | E44: 9833.62 | F44: 6972.68 | G44: 5154.25 | H44: 4062.98
A45: 50 | B45: - 54 | D45: =D12*$L$2 -> 18589.75 | E45: 12902.32 | F45: 9098.51 | G45: 7287.5 | H45: 5744.14
A46: 55 | B46: - 59 | D46: =D13*$L$2 -> 19779.07 | E46: 13730.18 | F46: 9677.8 | G46: 7752.84 | H46: 6114.61
A47: 60 | D47: =D14*$L$2 -> 21546.62 | E47: 14978.33 | F47: 11140.6 | G47: 9339.66 | H47: 7597.55
A48: 61 | D48: =D15*$L$2 -> 23148.28 | E48: 16096.1 | F48: 11963.69 | G48: 10041.91 | H48: 8163.06
A49: 62 | D49: =D16*$L$2 -> 25344.07 | E49: 17628.33 | F49: 13104.78 | G49: 10988.49 | H49: 8938.98
A50: 63 | D50: =D17*$L$2 -> 26948.38 | E50: 18743.98 | F50: 13927.87 | G50: 11691.8 | H50: 9501.84
A51: 64 | D51: =D18*$L$2 -> 29149.47 | E51: 20280.45 | F51: 15074.79 | G51: 12643.68 | H51: 10287.83
A52: 65 | D52: =D19*$L$2 -> 38109.12 | E52: 26454.95 | F52: 19059.86 | G52: 16865.13 | H52: 14507.16
A53: 66 | D53: =D20*$L$2 -> 44272.49 | E53: 30740.53 | F53: 22146.05 | G53: 19606.29 | H53: 16854.53
A54: 67 | D54: =D21*$L$2 -> 48359.85 | E54: 33574.97 | F54: 24190.26 | G54: 21408.82 | H54: 18412.73
A55: 68 | D55: =D22*$L$2 -> 53548.55 | E55: 37173.67 | F55: 26786.73 | G55: 23711.14 | H55: 20388.04
A56: 69 | D56: =D23*$L$2 -> 58917.98 | E56: 40898.51 | F56: 29473.83 | G56: 26086.07 | H56: 22435.96
A57: 70 | D57: =D24*$L$2 -> 72508.77 | E57: 49803.57 | F57: 34695.92 | G57: 30394.97 | H57: 26392.94
A58: 71 | D58: =D25*$L$2 -> 75359.64 | E58: 51757.15 | F58: 36061.2 | G58: 31593.3 | H58: 27429.62
A59: 72 | D59: =D26*$L$2 -> 77494.48 | E59: 53223.13 | F59: 37074.56 | G59: 32487.94 | H59: 28205.54
A60: 73 | D60: =D27*$L$2 -> 80339.52 | E60: 55181.48 | F60: 38438.78 | G60: 33683.62 | H60: 29236.39
A61: 74 | D61: =D28*$L$2 -> 81762.57 | E61: 56157.21 | F61: 39126.72 | G61: 34279.34 | H61: 29759.5
A62: 75 | B62: o más | D62: =D29*$L$2 -> 85321.52 | E62: 58599.98 | F62: 40822.72 | G62: 35772.35 | H62: 31059.59
A63: 1 | B63: Hijo | D63: =D30*$L$2 -> 3185.3 | E63: 2346.31 | F63: 1807.3 | G63: 1497.25 | H63: 1164.41
A64: 2 | B64: Hijos | D64: =D31*$L$2 -> 5066.8 | E64: 3737.56 | F64: 2876.31 | G64: 2375.99 | H64: 1852.88
A65: 3 | B65: Hijos o más | D65: =D32*$L$2 -> 7430.07 | E65: 5474.37 | F65: 4211.38 | G65: 3482.1 | H65: 2711.48
A66: 1 | B66: Rider Comp. Maternidad | D66: =+D33*$L$2 -> 0 | E66: 0 | F66: 119.25 | G66: 119.25 | H66: 119.25
A67: 1 | B67: Transplante de organos | D67: 0 | E67: 0 | F67: 0 | G67: 0 | H67: 0
A69: DIAMOND (LATINAMERICA ONLY)
A70: TARIFAS ANUALES
A71: EDAD
A73: 18 | B73: - 24
A74: 25 | B74: - 29
A75: 30 | B75: - 34
A76: 35 | B76: - 39
A77: 40 | B77: - 44
A78: 45 | B78: - 49
A79: 50 | B79: - 54
A80: 55 | B80: - 59
A81: 60
A82: 61
A83: 62
A84: 63
A85: 64
A86: 65
A87: 66
A88: 67
A89: 68
A90: 69
A91: 70
A92: 71
A93: 72
A94: 73
A95: 74
A96: 75 | B96: o más
A97: 1 | B97: Hijo
A98: 2 | B98: Hijos
A99: 3 | B99: Hijos o más
A100: 1 | B100: Rider Comp. Maternidad
A101: 1 | B101: Transplante de organos
A103: TARIFAS SEMESTRALES
A104: EDAD
A106: 18 | B106: - 24
A107: 25 | B107: - 29
A108: 30 | B108: - 34
A109: 35 | B109: - 39
A110: 40 | B110: - 44
A111: 45 | B111: - 49
A112: 50 | B112: - 54
A113: 55 | B113: - 59
A114: 60
A115: 61
A116: 62
A117: 63
A118: 64
A119: 65
A120: 66
A121: 67
A122: 68
A123: 69
A124: 70
A125: 71
A126: 72
A127: 73
A128: 74
A129: 75 | B129: o más
A130: 1 | B130: Hijo
A131: 2 | B131: Hijos
A132: 3 | B132: Hijos o más
A133: 1 | B133: Rider Comp. Maternidad
A134: 1 | B134: Transplante de organos
A136: PRIVILEGE
A137: TARIFAS ANUALES | I137: OK
A138: EDAD
D139: CW2 | E139: CW3 | F139: CW4 | G139: CW5 | H139: CW6 | J139: CW2 | K139: CW3 | L139: CW4 | M139: CW5 | N139: CW6 | O139: CW2 | P139: CW3 | Q139: CW4 | R139: CW5 | S139: CW6
A140: 18 | B140: - 24 | D140: =O140 -> 14551 | E140: =P140 -> 10002 | F140: 6628 | G140: 4621 | H140: 3514 | J140: 14551 | K140: 10002 | L140: 6628 | M140: 4621 | N140: 3514 | O140: =(J140-50)*1+50 -> 14551 | P140: =(K140-50)*1+50 -> 10002 | Q140: 6628 | R140: 4621 | S140: 3514
A141: 25 | B141: - 29 | D141: =O141 -> 15262 | E141: =P141 -> 11066 | F141: =Q141 -> 7340 | G141: =R141 -> 5115 | H141: =S141 -> 3894 | J141: 15262 | K141: 11066 | L141: 7340 | M141: 5115 | N141: 3894 | O141: =(J141-50)*1+50 -> 15262 | P141: =(K141-50)*1+50 -> 11066 | Q141: =(L141-50)*1+50 -> 7340 | R141: =(M141-50)*1+50 -> 5115 | S141: =(N141-50)*1+50 -> 3894
A142: 30 | B142: - 34 | D142: 15945 | E142: 11836 | F142: 8238 | G142: 6181 | H142: 4729 | J142: 15945 | K142: 11836 | L142: 8238 | M142: 6181 | N142: 4729 | O142: 15945 | P142: 11836 | Q142: 8238 | R142: 6181 | S142: 4729
A143: 35 | B143: - 39 | D143: 17849 | E143: 13250 | F143: 9232 | G143: 6933 | H143: 5294 | J143: 17849 | K143: 13250 | L143: 9232 | M143: 6933 | N143: 5294 | O143: 17849 | P143: 13250 | Q143: 9232 | R143: 6933 | S143: 5294
A144: 40 | B144: - 44 | D144: 20665 | E144: 14532 | F144: 10263 | G144: 7646 | H144: 5844 | J144: 20665 | K144: 14532 | L144: 10263 | M144: 7646 | N144: 5844 | O144: 20665 | P144: 14532 | Q144: 10263 | R144: 7646 | S144: 5844
A145: 45 | B145: - 49 | D145: 23088 | E145: 16238 | F145: 11466 | G145: 8547 | H145: 6527 | J145: 23088 | K145: 16238 | L145: 11466 | M145: 8547 | N145: 6527 | O145: 23088 | P145: 16238 | Q145: 11466 | R145: 8547 | S145: 6527
A146: 50 | B146: - 54 | D146: 30177 | E146: 21419 | F146: 15056 | G146: 12185 | H146: 9319 | J146: 30177 | K146: 21419 | L146: 15056 | M146: 12185 | N146: 9319 | O146: 30177 | P146: 21419 | Q146: 15056 | R146: 12185 | S146: 9319
A147: 55 | B147: - 59 | D147: 32101 | E147: 22784 | F147: 16021 | G147: 12972 | H147: 9915 | J147: 32101 | K147: 22784 | L147: 16021 | M147: 12972 | N147: 9915 | O147: 32101 | P147: 22784 | Q147: 16021 | R147: 12972 | S147: 9915
A148: 60 | D148: 34959 | E148: 24737 | F148: 18233 | G148: 15424 | H148: 12400 | J148: 34959 | K148: 24737 | L148: 18233 | M148: 15424 | N148: 12400 | O148: 34959 | P148: 24737 | Q148: 18233 | R148: 15424 | S148: 12400
A149: 61 | D149: 37557 | E149: 26574 | F149: 19587 | G149: 16578 | H149: 13316 | J149: 37557 | K149: 26574 | L149: 19587 | M149: 16578 | N149: 13316 | O149: 37557 | P149: 26574 | Q149: 19587 | R149: 16578 | S149: 13316
A150: 62 | D150: 41111 | E150: 29106 | F150: 21449 | G150: 18151 | H150: 14581 | J150: 41111 | K150: 29106 | L150: 21449 | M150: 18151 | N150: 14581 | O150: 41111 | P150: 29106 | Q150: 21449 | R150: 18151 | S150: 14581
A151: 63 | D151: 43718 | E151: 30943 | F151: 22803 | G151: 19308 | H151: 15500 | J151: 43718 | K151: 30943 | L151: 22803 | M151: 19308 | N151: 15500 | O151: 43718 | P151: 30943 | Q151: 22803 | R151: 19308 | S151: 15500
A152: 64 | D152: 47282 | E152: 33482 | F152: 24673 | G152: 20886 | H152: 16773 | J152: 47282 | K152: 33482 | L152: 24673 | M152: 20886 | N152: 16773 | O152: 47282 | P152: 33482 | Q152: 24673 | R152: 20886 | S152: 16773
A153: 65 | D153: 61820 | E153: 43663 | F153: 31191 | G153: 27845 | H153: 23646 | J153: 61820 | K153: 43663 | L153: 31191 | M153: 27845 | N153: 23646 | O153: 61820 | P153: 43663 | Q153: 31191 | R153: 27845 | S153: 23646
A154: 66 | D154: 71811 | E154: 50734 | F154: 36242 | G154: 32363 | H154: 27474 | J154: 71811 | K154: 50734 | L154: 36242 | M154: 32363 | N154: 27474 | O154: 71811 | P154: 50734 | Q154: 36242 | R154: 32363 | S154: 27474
A155: 67 | D155: 78427 | E155: 55409 | F155: 39584 | G155: 35332 | H155: 30009 | J155: 78427 | K155: 55409 | L155: 39584 | M155: 35332 | N155: 30009 | O155: 78427 | P155: 55409 | Q155: 39584 | R155: 35332 | S155: 30009
A156: 68 | D156: 86844 | E156: 61346 | F156: 43836 | G156: 39130 | H156: 33229 | J156: 86844 | K156: 61346 | L156: 43836 | M156: 39130 | N156: 33229 | O156: 86844 | P156: 61346 | Q156: 43836 | R156: 39130 | S156: 33229
A157: 69 | D157: 95543 | E157: 67491 | F157: 48219 | G157: 43047 | H157: 36565 | J157: 95543 | K157: 67491 | L157: 48219 | M157: 43047 | N157: 36565 | O157: 95543 | P157: 67491 | Q157: 48219 | R157: 43047 | S157: 36565
A158: 70 | D158: 117587 | E158: 82183 | F158: 56763 | G158: 50173 | H158: 42996 | J158: 117587 | K158: 82183 | L158: 56763 | M158: 50173 | N158: 42996 | O158: 117587 | P158: 82183 | Q158: 56763 | R158: 50173 | S158: 42996
A159: 71 | D159: 122205 | E159: 85398 | F159: 58984 | G159: 52137 | H159: 44695 | J159: 122205 | K159: 85398 | L159: 58984 | M159: 52137 | N159: 44695 | O159: 122205 | P159: 85398 | Q159: 58984 | R159: 52137 | S159: 44695
A160: 72 | D160: 125669 | E160: 87814 | F160: 60662 | G160: 53613 | H160: 45954 | J160: 125669 | K160: 87814 | L160: 60662 | M160: 53613 | N160: 45954 | O160: 125669 | P160: 87814 | Q160: 60662 | R160: 53613 | S160: 45954
A161: 73 | D161: 130277 | E161: 91047 | F161: 62885 | G161: 55585 | H161: 47656 | J161: 130277 | K161: 91047 | L161: 62885 | M161: 55585 | N161: 47656 | O161: 130277 | P161: 91047 | Q161: 62885 | R161: 55585 | S161: 47656
A162: 74 | D162: 132583 | E162: 92653 | F162: 63999 | G162: 56576 | H162: 48487 | J162: 132583 | K162: 92653 | L162: 63999 | M162: 56576 | N162: 48487 | O162: 132583 | P162: 92653 | Q162: 63999 | R162: 56576 | S162: 48487
A163: 75 | B163: o más | D163: 138357 | E163: 96690 | F163: 66783 | G163: 59033 | H163: 50598 | J163: 138357 | K163: 96690 | L163: 66783 | M163: 59033 | N163: 50598 | O163: 138357 | P163: 96690 | Q163: 66783 | R163: 59033 | S163: 50598
A164: 1 | B164: Hijo | D164: 5044 | E164: 3680 | F164: 2692 | G164: 2230 | H164: 1654 | J164: 5044 | K164: 3680 | L164: 2692 | M164: 2230 | N164: 1654 | O164: =(J164)*1 -> 5044 | P164: =(K164)*1 -> 3680 | Q164: 2692 | R164: 2230 | S164: 1654
A165: 2 | B165: Hijos | D165: 8016 | E165: 5865 | F165: 4292 | G165: 3551 | H165: 2628 | J165: 8016 | K165: 5865 | L165: 4292 | M165: 3551 | N165: 2628 | O165: =(J165)*1 -> 8016 | P165: =(K165)*1 -> 5865 | Q165: =(L165)*1 -> 4292 | R165: =(M165)*1 -> 3551 | S165: =(N165)*1 -> 2628
A166: 3 | B166: Hijos o más | D166: 11758 | E166: 8593 | F166: 6283 | G166: 5203 | H166: 3853 | J166: 11758 | K166: 8593 | L166: 6283 | M166: 5203 | N166: 3853 | O166: 11758 | P166: 8593 | Q166: 6283 | R166: 5203 | S166: 3853
A167: 1 | B167: Rider Comp. Maternidad | D167: 0 | E167: 0 | F167: 225 | G167: 225 | H167: 225
A168: 1 | B168: Transplante de organos | D168: 0 | E168: 0 | F168: 0 | G168: 0 | H168: 0
A170: TARIFAS SEMESTRALES
A171: EDAD | I171: OK
D172: CW2 | E172: CW3 | F172: CW4 | G172: CW5 | H172: CW6
A173: 18 | B173: - 24 | D173: =D140*$L$2 -> 7712.03 | E173: =E140*$L$2 -> 5301.06 | F173: 3512.84 | G173: 2449.13 | H173: 1862.42
A174: 25 | B174: - 29 | D174: =D141*$L$2 -> 8088.86 | E174: 5864.98 | F174: 3890.2 | G174: 2710.95 | H174: 2063.82
A175: 30 | B175: - 34 | D175: =D142*$L$2 -> 8450.85 | E175: 6273.08 | F175: 4366.14 | G175: 3275.93 | H175: 2506.37
A176: 35 | B176: - 39 | D176: =D143*$L$2 -> 9459.97 | E176: 7022.5 | F176: 4892.96 | G176: 3674.49 | H176: 2805.82
A177: 40 | B177: - 44 | D177: =D144*$L$2 -> 10952.45 | E177: 7701.96 | F177: 5439.39 | G177: 4052.38 | H177: 3097.32
A178: 45 | B178: - 49 | D178: =D145*$L$2 -> 12236.64 | E178: 8606.14 | F178: 6076.98 | G178: 4529.91 | H178: 3459.31
A179: 50 | B179: - 54 | D179: =D146*$L$2 -> 15993.81 | E179: 11352.07 | F179: 7979.68 | G179: 6458.05 | H179: 4939.07
A180: 55 | B180: - 59 | D180: =D147*$L$2 -> 17013.53 | E180: 12075.52 | F180: 8491.13 | G180: 6875.16 | H180: 5254.95
A181: 60 | D181: =D148*$L$2 -> 18528.27 | E181: 13110.61 | F181: 9663.49 | G181: 8174.72 | H181: 6572
A182: 61 | D182: =D149*$L$2 -> 19905.21 | E182: 14084.22 | F182: 10381.11 | G182: 8786.34 | H182: 7057.48
A183: 62 | D183: =D150*$L$2 -> 21788.83 | E183: 15426.18 | F183: 11367.97 | G183: 9620.03 | H183: 7727.93
A184: 63 | D184: =D151*$L$2 -> 23170.54 | E184: 16399.79 | F184: 12085.59 | G184: 10233.24 | H184: 8215
A185: 64 | D185: =D152*$L$2 -> 25059.46 | E185: 17745.46 | F185: 13076.69 | G185: 11069.58 | H185: 8889.69
A186: 65 | D186: =D153*$L$2 -> 32764.6 | E186: 23141.39 | F186: 16531.23 | G186: 14757.85 | H186: 12532.38
A187: 66 | D187: =D154*$L$2 -> 38059.83 | E187: 26889.02 | F187: 19208.26 | G187: 17152.39 | H187: 14561.22
A188: 67 | D188: =D155*$L$2 -> 41566.31 | E188: 29366.77 | F188: 20979.52 | G188: 18725.96 | H188: 15904.77
A189: 68 | D189: =D156*$L$2 -> 46027.32 | E189: 32513.38 | F189: 23233.08 | G189: 20738.9 | H189: 17611.37
A190: 69 | D190: =D157*$L$2 -> 50637.79 | E190: 35770.23 | F190: 25556.07 | G190: 22814.91 | H190: 19379.45
A191: 70 | D191: =D158*$L$2 -> 62321.11 | E191: 43556.99 | F191: 30084.39 | G191: 26591.69 | H191: 22787.88
A192: 71 | D192: =D159*$L$2 -> 64768.65 | E192: 45260.94 | F192: 31261.52 | G192: 27632.61 | H192: 23688.35
A193: 72 | D193: =D160*$L$2 -> 66604.57 | E193: 46541.42 | F193: 32150.86 | G193: 28414.89 | H193: 24355.62
A194: 73 | D194: =D161*$L$2 -> 69046.81 | E194: 48254.91 | F194: 33329.05 | G194: 29460.05 | H194: 25257.68
A195: 74 | D195: =D162*$L$2 -> 70268.99 | E195: 49106.09 | F195: 33919.47 | G195: 29985.28 | H195: 25698.11
A196: 75 | B196: o más | D196: =D163*$L$2 -> 73329.21 | E196: 51245.7 | F196: 35394.99 | G196: 31287.49 | H196: 26816.94
A197: 1 | B197: Hijo | D197: =D164*$L$2 -> 2673.32 | E197: 1950.4 | F197: 1426.76 | G197: 1181.9 | H197: 876.62
A198: 2 | B198: Hijos | D198: =D165*$L$2 -> 4248.48 | E198: 3108.45 | F198: 2274.76 | G198: 1882.03 | H198: 1392.84
A199: 3 | B199: Hijos o más | D199: =D166*$L$2 -> 6231.74 | E199: 4554.29 | F199: 3329.99 | G199: 2757.59 | H199: 2042.09
A200: 1 | B200: Rider Comp. Maternidad | D200: =+D167*$L$2 -> 0 | E200: 0 | F200: 119.25 | G200: 119.25 | H200: 119.25
A201: 1 | B201: Transplante de organos | D201: 0 | E201: 0 | F201: 0 | G201: 0 | H201: 0
A203: COMPLETE (LATINAMERICA ONLY)
A204: TARIFAS ANUALES
A205: EDAD
A207: 18 | B207: - 24
A208: 25 | B208: - 29
A209: 30 | B209: - 34
... 335 more rows
